bitfinex/quotes_ETHUSD_20250129
["timestamp","ask_amount","ask_price","bid_price","bid_amount"]
[1738172468026,3.20294,3122.2,3121.9,35.0]
[1738172468222,3.0,3122.5,3121.9,35.0]
[1738172468415,3.0,3122.5,3122.0,4.1091028]
[1738172469440,3.20266,3122.4,3122.0,0.0980128]
[1738172469597,0.758,3122.3,3122.1,0.306]
[1738172469799,0.6952522,3122.5,3122.1,0.306]
[1738172469800,6.8978422,3122.5,3122.1,0.306]
[1738172470044,0.65111658,3122.8,3122.2,0.0974543]
[1738172470246,3.20188,3123.2,3122.5,3.20248]
[1738172470408,3.20199,3123.1,3122.5,3.20248]
[1738172470606,3.20199,3123.1,3122.6,0.09682351]
[1738172470842,3.20188,3123.2,3122.6,0.09682351]
[1738172471143,3.20147,3123.6,3122.6,0.09682351]
[1738172471306,3.399747,3123.5,3123.0,3.966]
[1738172471507,3.20193,3123.2,3122.7,35.0]
[1738172471737,3.20211,3123.0,3122.8,0.306]
[1738172472638,3.20215,3122.9,3122.8,0.306]
[1738172472838,3.920316,3122.9,3122.8,0.306]
[1738172473019,3.920316,3122.9,3122.7,35.0]
[1738172473333,3.920316,3122.9,3122.4,0.764]
[1738172473334,3.20241,3122.7,3122.6,0.306]
[1738172473752,0.718166,3122.9,3122.6,35.306]
[1738172473953,3.20195,3123.1,3122.6,35.306]
[1738172474240,3.20215,3122.9,3122.7,0.306]
[1738172474445,6.40439,3122.9,3122.7,0.306]
[1738172474861,3.20215,3122.9,3122.7,0.306]
[1738172475275,6.40402,3123.1,3122.7,0.306]
[1738172475457,0.7878,3123.4,3122.7,0.306]
[1738172475458,3.20165,3123.4,3122.8,4.01687]
[1738172475640,0.399747,3123.5,3122.8,4.01687]
[1738172475846,6.20153,3123.5,3123.0,3.20202]
[1738172476046,6.20153,3123.5,3123.1,35.0]
[1738172476725,3.20165,3123.4,3123.1,35.0]
[1738172476922,6.20153,3123.5,3122.8,0.8147]
[1738172476923,3.20178,3123.3,3122.8,0.8147]
[1738172477169,9.40318,3123.5,3122.8,0.8147]
[1738172477374,3.20166,3123.4,3122.8,4.01687]
[1738172477578,3.20166,3123.4,3122.9,35.0959239]
[1738172477780,3.20179,3123.3,3122.9,35.0959239]
[1738172477961,3.20166,3123.4,3122.9,35.0959239]
[1738172478278,6.40338,3123.4,3122.9,35.0959239]
[1738172478581,0.940338,3123.4,3122.9,0.0959239]
[1738172478785,3.20201,3123.1,3123.0,0.306]
[1738172479986,3.0,3123.6,3123.1,3.99801]
[1738172480187,4.47513873,3123.8,3123.1,3.99801]
[1738172480479,3.20118,3123.9,3123.3,3.20171]
[1738172480684,3.98966,3124.1,3123.3,3.20171]
[1738172480885,3.20073,3124.3,3123.3,3.20171]
[1738172480886,3.82628652,3124.3,3123.7,3.2013]
[1738172481194,3.20087,3124.2,3123.8,0.8033]
[1738172481374,3.20087,3124.2,3123.9,35.0]
[1738172481748,3.20073,3124.3,3123.9,35.0]
[1738172482068,3.20102,3124.0,3123.9,35.0]
[1738172482382,3.20102,3124.0,3123.9,0.306]
[1738172482567,3.95942,3124.0,3123.9,0.306]
[1738172482769,6.95942,3124.0,3123.9,0.306]
[1738172483466,6.95942,3124.0,3123.1,35.0]
[1738172483667,6.95942,3124.0,3123.0,0.8289]
[1738172483668,3.20182,3123.3,3123.2,0.306]
[1738172483871,3.20182,3123.3,3122.7,0.7712]
[1738172484181,3.20225,3122.8,3122.2,0.79]
[1738172484339,3.20237,3122.7,3122.3,0.306]
[1738172485172,3.20285,3122.3,3121.9,0.79]
[1738172485554,3.20285,3122.3,3122.0,0.306]
[1738172485764,3.20288,3122.2,3122.0,0.306]
[1738172486168,3.20272,3122.4,3122.0,0.306]
[1738172486362,3.20282,3122.3,3122.0,0.306]
[1738172488496,3.843364,3122.3,3122.0,0.306]
[1738172488707,3.20297,3122.1,3122.0,0.306]
[1738172489009,3.20292,3122.2,3122.0,0.306]
[1738172489998,3.20292,3122.2,3121.6,3.99338]
[1738172490305,3.20298,3122.1,3121.7,0.306]
[1738172490609,4.00365,3122.7,3121.9,3.20315]
[1738172490610,3.20261,3122.5,3121.9,3.20315]
[1738172490764,3.20255,3122.6,3122.0,3.20301]
[1738172490965,6.40421,3123.0,3122.4,3.20264]
[1738172491159,3.20209,3123.0,3122.4,3.20264]
[1738172491592,6.40423,3123.0,3122.4,3.20264]
[1738172492069,3.20209,3123.0,3122.4,3.20264]
[1738172492258,3.20196,3123.1,3122.5,0.7754]
[1738172492458,6.40383,3123.2,3122.7,3.20228]
[1738172492659,3.2019,3123.2,3122.7,3.20228]
[1738172493101,3.20205,3123.0,3122.5,3.97789]
[1738172494625,3.20228,3122.8,3122.5,0.7754]
[1738172494830,3.20235,3122.7,3122.6,0.306]
[1738172496715,3.20274,3122.4,3122.2,0.7877]
[1738172496922,3.20274,3122.4,3122.3,0.306]
[1738172497645,3.2026,3122.5,3122.3,0.306]
[1738172498744,3.2026,3122.5,3122.4,0.306]
[1738172499245,3.2026,3122.5,3122.2,0.7877]
[1738172499590,3.20221,3122.9,3122.3,0.306]
[1738172499846,6.40446,3122.9,3122.3,3.50874]
[1738172500003,3.20221,3122.9,3122.3,6.71148]
[1738172500199,3.20221,3122.9,3122.3,3.50874]
[1738172500543,3.20227,3122.8,3122.3,3.50874]
[1738172500868,3.20236,3122.7,3122.3,0.306]
[1738172501065,6.40478,3122.7,3122.3,0.306]
[1738172501220,3.20236,3122.7,3122.3,0.306]
[1738172502135,3.20221,3122.9,3122.3,0.306]
[1738172502336,6.40443,3122.9,3122.4,3.20264]
[1738172502650,3.20225,3122.8,3122.3,0.306]
[1738172502803,3.20225,3122.8,3122.3,3.50871]
[1738172503854,3.20244,3122.7,3122.3,0.306]
[1738172504021,3.842909,3122.7,3122.3,0.306]
[1738172504215,0.640469,3122.7,3122.3,3.50874]
[1738172504431,3.20209,3123.0,3122.4,3.20266]
[1738172504629,0.796,3123.3,3122.4,3.20266]
[1738172504836,3.20191,3123.2,3122.5,3.50847]
[1738172505039,3.0,3123.1,3122.6,3.9638]
[1738172505349,3.0,3123.1,3122.5,3.50847]
[1738172505350,3.20227,3122.8,3122.5,0.306]
[1738172505507,3.20245,3122.6,3122.5,0.306]
[1738172506144,3.20227,3122.8,3122.5,0.306]
[1738172506344,3.20235,3122.7,3122.5,0.306]
[1738172506514,3.20245,3122.6,3122.5,0.306]
[1738172507841,3.20236,3122.7,3122.5,0.306]
[1738172510651,3.98352,3122.9,3122.5,0.306]
[1738172510850,4.44880323,3122.9,3122.5,0.306]
[1738172511167,3.20236,3122.7,3122.5,0.306]
[1738172512060,3.20245,3122.6,3122.5,0.306]
[1738172512264,3.20245,3122.6,3122.0,4.00222]
[1738172512265,3.20256,3122.5,3122.0,4.00222]
[1738172512418,3.20256,3122.5,3122.0,4.30822]
[1738172512857,3.20232,3122.8,3122.2,3.20285]
[1738172513167,3.20232,3122.8,3122.3,3.20275]
[1738172513864,3.2021,3123.0,3122.0,1.1052]
[1738172513865,3.2021,3123.0,3122.5,3.20255]
[1738172514034,3.20189,3123.2,3122.6,0.8297]
[1738172514035,3.0,3123.1,3122.6,0.8297]
[1738172514216,6.20196,3123.1,3122.6,0.8297]
[1738172514412,0.7699,3123.2,3122.2,0.8077]
[1738172514617,0.7699,3123.2,3122.3,0.306]
[1738172514618,3.20252,3122.6,3122.3,0.306]
[1738172515457,3.20226,3122.8,3122.3,0.306]
[1738172515764,3.20226,3122.8,3122.3,3.50875]
[1738172516066,3.20226,3122.8,3122.3,6.71144]
[1738172516218,6.40424,3123.0,3122.4,3.20264]
[1738172516424,3.919514,3123.0,3122.5,3.20247]
[1738172516646,3.919514,3123.0,3122.3,3.50869]
[1738172516647,3.20215,3122.9,3122.4,3.20266]
[1738172517129,3.919514,3123.0,3122.4,3.20266]
[1738172517330,3.919524,3123.0,3122.3,0.306]
[1738172517519,3.20238,3122.7,3122.3,0.306]
[1738172517915,3.20215,3122.9,3122.3,3.50876]
[1738172518116,3.5941064,3122.9,3122.3,0.306]
[1738172518316,3.20225,3122.8,3122.3,0.306]
[1738172518541,3.20241,3122.7,3122.3,0.306]
[1738172519043,0.7699,3123.2,3122.3,0.306]
[1738172519261,3.20177,3123.3,3122.8,3.20223]
[1738172519470,0.7775,3123.8,3122.9,3.98294]
[1738172519722,3.20164,3123.4,3122.9,3.98294]
[1738172519878,3.20153,3123.5,3123.0,3.20198]
[1738172520058,3.20144,3123.6,3123.1,3.2019]
[1738172520260,3.20144,3123.6,3123.0,3.20198]
[1738172520488,3.97875,3123.8,3122.9,0.7808]
[1738172520680,3.20197,3123.1,3122.6,3.98322]
[1738172521036,6.40382,3123.2,3122.6,3.98322]
[1738172521268,3.20191,3123.2,3122.6,3.98322]
[1738172521670,3.20191,3123.2,3122.6,0.7808]
[1738172521671,0.8031,3123.2,3122.6,0.7808]
[1738172521872,0.8031,3123.2,3122.3,0.8306]
[1738172521873,6.40388,3123.1,3122.3,0.8306]
[1738172522082,3.20225,3122.8,3122.7,0.306]
[1738172522545,3.20215,3122.9,3122.7,0.306]
[1738172522751,3.20225,3122.8,3122.7,0.306]
[1738172524994,6.20225,3122.8,3122.7,0.306]
[1738172525281,6.20225,3122.8,3122.0,0.7743]
[1738172525282,6.20225,3122.8,3122.1,3.20296]
[1738172525434,3.20271,3122.4,3122.2,0.306]
[1738172525641,3.20297,3122.2,3121.6,0.7619]
[1738172525839,3.20297,3122.2,3121.7,0.306]
[1738172526085,3.20274,3122.4,3121.8,3.20319]
[1738172526392,3.20253,3122.6,3122.1,0.7619]
[1738172526692,3.20262,3122.5,3122.1,0.7619]
[1738172527044,0.46327555,3122.5,3121.6,0.7625]
[1738172527391,3.20337,3121.8,3121.6,0.7625]
[1738172527594,3.20337,3121.8,3121.7,0.306]
[1738172528477,3.20308,3122.0,3121.3,0.7898]
[1738172528685,3.20355,3121.6,3121.4,0.306]
[1738172529043,3.20355,3121.6,3121.3,0.7898]
[1738172529044,3.20355,3121.6,3121.5,0.306]
[1738172529694,0.8036,3122.2,3121.5,0.306]
[1738172529895,3.20313,3122.0,3121.6,0.8134]
[1738172530545,3.20297,3122.1,3121.6,0.8134]
[1738172530743,3.20287,3122.2,3121.7,3.20337]
[1738172531194,3.2028,3122.3,3121.8,3.20327]
[1738172531349,3.2028,3122.3,3121.7,6.40668]
[1738172531963,3.2028,3122.3,3121.8,3.20322]
[1738172532199,3.20257,3122.5,3121.9,3.20317]
[1738172532496,1.281514,3122.9,3122.2,3.20278]
[1738172532497,3.20215,3122.9,3122.2,3.20278]
[1738172532678,3.20242,3122.7,3122.2,3.20278]
[1738172533165,3.20246,3122.6,3122.0,4.00372]
[1738172533518,3.20242,3122.7,3122.1,3.20293]
[1738172533669,3.20242,3122.7,3122.0,4.00372]
[1738172533854,3.20247,3122.6,3122.0,4.00372]
[1738172534057,3.20242,3122.7,3122.0,4.00371]
[1738172534353,3.20242,3122.7,3122.1,3.20291]
[1738172535002,6.40486,3122.7,3122.1,3.20291]
[1738172535169,3.20242,3122.7,3122.1,3.20291]
[1738172535795,3.20248,3122.6,3122.1,3.20291]
[1738172536397,3.20242,3122.7,3122.1,3.20291]
[1738172536794,6.20196,3123.1,3122.5,3.2025]
[1738172536995,6.20196,3123.1,3122.6,3.20245]
[1738172537199,3.20177,3123.3,3122.6,3.20239]
[1738172537519,3.20133,3123.7,3123.1,3.20188]
[1738172537693,3.20133,3123.7,3123.3,0.7786]
[1738172537861,3.20116,3123.9,3123.3,3.9803]
[1738172538062,0.4634074,3123.9,3123.3,3.9803]
[1738172538291,3.20125,3123.8,3123.3,3.9803]
[1738172538493,3.0,3123.9,3123.3,3.9803]
[1738172538710,3.20112,3123.9,3123.3,3.9803]
[1738172539297,3.20086,3124.2,3123.3,3.9803]
[1738172539501,3.20104,3124.0,3123.5,3.20153]
[1738172539684,3.84123,3124.0,3123.4,3.20162]
[1738172539878,3.20104,3124.0,3123.4,3.20162]
[1738172540283,6.40216,3124.0,3123.4,3.20162]
[1738172540495,3.20104,3124.0,3123.4,3.20162]
[1738172540940,3.20113,3123.9,3123.4,3.20162]
[1738172541290,3.20123,3123.8,3123.3,0.7786]
[1738172542029,3.841457,3123.8,3123.3,3.98033]
[1738172542212,3.20104,3124.0,3123.3,0.7786]
[1738172542386,3.20104,3124.0,3123.5,3.20149]
[1738172542785,3.20086,3124.2,3123.6,3.20142]
[1738172542991,3.20064,3124.4,3123.6,3.20142]
[1738172543217,0.703074,3124.4,3123.9,3.97882]
[1738172543528,3.20061,3124.4,3123.9,3.97882]
[1738172543938,3.20061,3124.4,3123.9,0.7778]
[1738172544243,3.20025,3124.8,3123.9,0.7778]
[1738172544541,3.20046,3124.6,3124.0,3.20094]
[1738172544739,3.84219827,3124.6,3124.0,3.20094]
[1738172544897,0.38421983,3124.5,3124.0,3.20094]
[1738172545237,3.20011,3124.9,3124.4,0.8097]
[1738172545437,0.817,3125.2,3124.4,0.8097]
[1738172545647,3.20031,3124.7,3124.4,0.8097]
[1738172546001,3.20031,3124.7,3124.1,4.02302]
[1738172546237,3.68439343,3124.7,3124.1,4.02302]
[1738172546440,3.68439343,3124.7,3123.6,0.7543]
[1738172546441,3.20051,3124.5,3123.6,0.7543]
[1738172546745,3.20071,3124.3,3124.2,0.305]
[1738172547130,3.20044,3124.6,3124.2,0.305]
[1738172547314,3.63352725,3124.6,3124.2,1.0593]
[1738172547515,3.79,3125.0,3124.3,3.20069]
[1738172547516,3.99004,3125.0,3124.3,3.20069]
[1738172547716,3.99004,3125.0,3124.2,1.0593]
[1738172547717,3.84472408,3125.0,3124.2,1.0593]
[1738172547917,3.84472408,3125.0,3124.4,3.20057]
[1738172548454,3.84472408,3125.0,3124.2,4.26008]
[1738172548455,0.7611,3125.6,3124.5,1.3456]
[1738172548636,3.19962,3125.4,3124.8,3.20018]
[1738172549117,3.0,3125.5,3124.8,3.20012]
[1738172549305,3.19965,3125.4,3124.8,3.20012]
[1738172549916,3.0,3125.5,3124.8,3.20012]
[1738172550120,0.68542963,3125.4,3124.8,3.20012]
[1738172550440,3.19969,3125.3,3124.8,3.20012]
[1738172551856,0.68542963,3125.4,3124.8,3.20012]
[1738172552067,3.88504963,3125.4,3124.8,6.40025]
[1738172552357,3.19971,3125.3,3124.8,3.20012]
[1738172552522,3.90818596,3125.3,3124.8,3.20012]
[1738172553667,3.90818596,3125.3,3124.7,3.20778]
[1738172554630,3.19996,3125.1,3124.5,0.7881]
[1738172554965,3.2005,3124.6,3124.2,0.8019]
[1738172555175,0.32005,3124.5,3124.3,0.305]
[1738172555344,3.19979,3125.2,3124.3,0.305]
[1738172555345,3.20041,3124.6,3124.3,0.305]
[1738172555741,3.20041,3124.6,3123.9,3.20103]
[1738172555742,3.20051,3124.5,3123.9,3.20103]
[1738172555956,3.20051,3124.5,3124.4,0.305]
[1738172556265,3.20051,3124.5,3123.9,4.01533]
[1738172556266,3.20062,3124.4,3123.9,0.8143]
[1738172556451,0.8098,3124.6,3124.0,0.305]
[1738172556452,3.20084,3124.2,3124.0,0.305]
[1738172556656,0.320084,3124.1,3123.6,0.8143]
[1738172556859,3.20108,3124.0,3123.7,0.305]
[1738172557067,3.20108,3124.0,3123.6,0.8143]
[1738172557260,3.20108,3124.0,3123.7,0.305]
[1738172558136,0.320084,3124.1,3123.7,0.305]
[1738172558466,6.40134,3124.4,3123.8,3.20122]
[1738172558666,3.20079,3124.3,3123.8,3.20122]
[1738172558866,3.20066,3124.4,3123.9,0.305]
[1738172559072,3.20084,3124.2,3123.9,0.305]
[1738172560270,6.40136,3124.4,3123.9,0.305]
[1738172560571,6.40136,3124.4,3123.7,3.20132]
[1738172560572,3.20077,3124.3,3123.7,3.20132]
[1738172560733,3.20077,3124.3,3123.8,0.305]
[1738172561072,3.20077,3124.3,3123.7,3.20132]
[1738172561276,3.20083,3124.2,3123.9,0.305]
[1738172562501,3.20093,3124.1,3123.9,0.305]
[1738172562672,3.841106,3124.1,3123.9,0.305]
[1738172563388,0.640176,3124.1,3123.9,0.305]
[1738172563543,3.20083,3124.2,3123.9,0.305]
[1738172563743,3.20083,3124.2,3124.0,35.0]
[1738172564098,3.20092,3124.1,3124.0,35.0]
[1738172565282,3.20092,3124.1,3124.0,35.305]
[1738172566052,3.98528934,3124.4,3124.0,35.305]
[1738172566410,0.63503343,3124.5,3124.0,35.305]
[1738172566550,3.20026,3124.8,3124.3,3.20065]
[1738172566945,3.85598838,3125.3,3124.7,3.20024]
[1738172567145,3.19988,3125.2,3124.7,3.98754]
[1738172567344,0.70558684,3125.1,3124.7,3.98754]
[1738172567592,3.19988,3125.2,3124.8,35.0]
[1738172567770,3.19992,3125.1,3124.8,35.0]
[1738172568879,3.2001,3124.9,3124.8,35.0]
[1738172569283,3.19992,3125.1,3124.8,35.0]
[1738172569480,3.2001,3124.9,3124.8,35.0]
[1738172569889,3.2001,3124.9,3124.8,35.305]
[1738172570086,3.19995,3125.1,3124.8,0.305]
[1738172570662,3.20002,3125.0,3124.8,0.305]
[1738172570861,3.19985,3125.2,3124.8,0.305]
[1738172571101,3.19996,3125.1,3124.8,0.305]
[1738172571682,3.2,3125.0,3124.8,0.305]
[1738172572008,3.20018,3124.9,3124.6,35.0]
[1738172572168,3.2002,3124.8,3124.7,0.305]
[1738172572605,3.20018,3124.9,3124.7,0.305]
[1738172573691,3.19987,3125.2,3124.7,0.305]
[1738172574005,3.19987,3125.2,3124.7,3.50528]
[1738172574301,3.19987,3125.2,3124.8,35.0]
[1738172575813,3.19998,3125.1,3124.8,35.0]
[1738172576015,3.2003,3124.8,3124.4,0.7743]
[1738172576305,3.20036,3124.7,3124.5,0.305]
[1738172577079,3.20036,3124.7,3124.1,35.7709]
[1738172577275,3.20036,3124.7,3124.2,0.305]
[1738172577705,3.20052,3124.5,3124.2,0.305]
[1738172578678,3.20062,3124.4,3124.1,35.0]
[1738172578913,3.20062,3124.4,3124.3,0.305]
[1738172579211,3.20078,3124.3,3124.1,35.0]
[1738172579413,3.20078,3124.3,3124.2,0.305]
[1738172579828,3.20081,3124.2,3124.1,35.0]
[1738172579977,3.95211,3124.2,3124.1,35.305]
[1738172580176,3.20121,3123.9,3123.5,0.8265]
[1738172580485,3.20094,3124.1,3123.6,0.305]
[1738172580812,4.59839309,3124.5,3123.9,4.02753]
[1738172581374,3.20062,3124.4,3123.9,0.8265]
[1738172581574,3.20062,3124.4,3124.0,35.0]
[1738172582274,6.40131,3124.4,3124.0,35.0]
[1738172582519,1.39785309,3124.5,3124.0,35.0]
[1738172582820,3.20092,3124.1,3124.0,35.0]
[1738172583372,3.20066,3124.4,3124.0,35.0]
[1738172583651,4.59843309,3124.5,3124.0,35.0]
[1738172584101,3.20069,3124.4,3124.0,35.0]
[1738172585616,3.20078,3124.3,3124.0,35.0]
[1738172586303,3.20092,3124.1,3124.0,35.0]
[1738172588500,3.20092,3124.1,3124.0,35.305]
[1738172589234,3.20082,3124.2,3124.0,35.305]
[1738172589412,3.20065,3124.4,3124.0,35.305]
[1738172589413,3.20065,3124.4,3124.0,36.0787]
[1738172589735,3.20085,3124.2,3124.0,35.305]
[1738172591031,3.20065,3124.4,3124.0,35.305]
[1738172591189,3.20073,3124.3,3124.0,35.305]
[1738172591390,3.20081,3124.2,3124.0,35.305]
[1738172591625,6.40172,3124.2,3124.0,35.305]
[1738172591923,6.40172,3124.2,3124.0,35.0]
[1738172591924,3.20092,3124.1,3124.0,35.0]
[1738172592105,3.20111,3124.0,3123.6,0.8039]
[1738172592307,3.20133,3123.7,3123.2,0.8302]
[1738172592522,3.20124,3123.8,3123.3,38.50673]
[1738172593219,3.20124,3123.8,3123.3,35.305]
[1738172593419,3.20134,3123.7,3123.3,35.305]
[1738172595633,3.20134,3123.7,3123.3,35.0]
[1738172595941,3.20134,3123.7,3123.4,0.305]
[1738172596434,3.20134,3123.7,3123.2,4.03198]
[1738172596728,3.20123,3123.8,3123.5,0.305]
[1738172597426,3.20123,3123.8,3123.6,35.0]
[1738172598320,3.20133,3123.7,3123.6,35.0]
[1738172598742,3.20133,3123.7,3123.2,0.8302]
[1738172598743,3.61664433,3123.7,3123.2,0.8302]
[1738172598941,3.202,3123.1,3123.0,0.305]
[1738172599907,3.20184,3123.2,3122.7,35.0]
[1738172600238,3.20205,3123.0,3122.9,0.305]
[1738172601726,3.20205,3123.0,3122.8,0.305]
[1738172602472,3.20235,3122.7,3122.6,2.535]
[1738172602739,3.20235,3122.7,3122.6,2.84]
[1738172602904,3.20235,3122.7,3122.6,37.84]
[1738172603600,6.40441,3122.9,3122.6,37.84]
[1738172603800,3.20218,3122.9,3122.6,37.84]
[1738172604003,3.20226,3122.8,3122.6,37.84]
[1738172604543,3.20235,3122.7,3122.6,37.84]
[1738172605037,3.20235,3122.7,3122.6,35.305]
[1738172606466,3.20231,3122.8,3122.6,35.305]
[1738172606845,3.20235,3122.7,3122.6,35.305]
[1738172607042,0.62544838,3122.9,3122.6,35.305]
[1738172607236,0.62544838,3122.9,3122.7,0.8026]
[1738172607437,3.82761838,3122.9,3122.7,0.8026]
[1738172607639,3.82761838,3122.9,3122.6,35.305]
[1738172608572,3.20235,3122.7,3122.6,35.305]
[1738172608759,0.7517,3123.2,3122.7,0.7744]
[1738172608963,3.2017,3123.4,3122.7,3.97675]
[1738172609164,3.20188,3123.2,3122.7,0.7744]
[1738172609340,3.20222,3122.9,3122.6,0.305]
[1738172609670,3.20225,3122.8,3122.7,35.0]
[1738172612183,3.20205,3123.0,3122.7,35.0]
[1738172612504,6.40417,3123.0,3122.7,35.0]
[1738172612990,3.20189,3123.2,3122.7,35.0]
[1738172613143,3.20169,3123.4,3122.7,35.0]
[1738172613144,3.20169,3123.4,3122.9,3.2021]
[1738172614384,3.2018,3123.3,3122.8,0.7954]
[1738172614586,3.2018,3123.3,3122.8,3.99765]
[1738172614907,3.85028842,3123.5,3123.0,3.20203]
[1738172615269,3.20125,3123.8,3122.9,0.0075]
[1738172615469,3.82665643,3124.0,3123.4,0.7874]
[1738172615809,3.7525,3124.3,3123.5,3.20153]
[1738172615970,3.0,3124.3,3123.4,0.7874]
[1738172616166,3.20083,3124.2,3123.7,3.20125]
[1738172616462,3.20093,3124.1,3123.5,6.40292]
[1738172617104,3.20114,3123.9,3123.6,35.0]
[1738172617580,6.40235,3123.9,3123.6,35.0]
[1738172617781,3.20124,3123.8,3123.6,35.0]
[1738172617973,3.20124,3123.8,3123.7,0.305]
[1738172620890,3.20147,3123.6,3123.2,35.0]
[1738172621204,3.20147,3123.6,3123.3,0.305]
[1738172621375,3.20125,3123.8,3123.3,0.305]
[1738172621776,3.20133,3123.7,3123.3,0.305]
[1738172621981,3.20133,3123.7,3123.4,35.0]
[1738172623312,6.20124,3123.8,3123.4,35.0]
[1738172624901,3.20133,3123.7,3123.4,35.0]
[1738172626425,3.20146,3123.6,3123.4,35.0]
[1738172630546,3.20133,3123.7,3123.4,35.0]
[1738172630853,3.20182,3123.3,3123.1,0.8179]
[1738172631024,3.20182,3123.3,3123.2,0.304]
[1738172631848,3.20158,3123.5,3123.2,0.304]
[1738172632145,3.20166,3123.4,3123.2,0.304]
[1738172633058,3.20174,3123.3,3123.2,0.304]
[1738172633364,3.20163,3123.4,3123.2,0.304]
[1738172633507,3.601513,3123.3,3123.2,0.304]
[1738172634336,3.20174,3123.3,3123.2,0.304]
[1738172639632,3.20045,3124.6,3123.9,0.776]
[1738172639836,4.480452,3125.3,3124.6,3.20034]
[1738172640053,1.280692,3125.3,3124.7,0.304]
[1738172640240,0.62657114,3125.4,3124.7,0.304]
[1738172640579,0.62657114,3125.4,3124.8,3.2001]
[1738172641153,0.62657114,3125.4,3124.9,3.20001]
[1738172641350,1.30916925,3125.4,3124.8,3.2001]
[1738172641568,1.30916925,3125.4,3124.9,3.20004]
[1738172641771,3.19914,3125.9,3125.2,3.19977]
[1738172641935,3.19914,3125.9,3125.0,0.7851]
[1738172641936,3.19914,3125.9,3125.3,3.19961]
[1738172642336,3.19892,3126.1,3125.3,3.19961]
[1738172642539,3.19892,3126.1,3125.5,3.19943]
[1738172642786,3.0,3126.0,3125.5,3.19943]
[1738172643084,3.19915,3125.9,3125.3,3.19968]
[1738172643290,3.19934,3125.7,3125.0,0.7851]
[1738172643436,3.19949,3125.5,3124.9,3.20003]
[1738172643893,3.19961,3125.4,3125.0,0.304]
[1738172644574,3.19977,3125.3,3125.0,0.304]
[1738172644878,3.19989,3125.1,3124.5,3.20046]
[1738172645132,3.19989,3125.1,3125.0,0.304]
[1738172645463,3.2001,3124.9,3124.3,4.00203]
[1738172645729,3.20032,3124.7,3124.4,0.304]
[1738172646364,3.20051,3124.5,3124.4,0.304]
[1738172649272,3.0,3124.8,3124.4,0.304]
[1738172649499,3.20041,3124.6,3124.4,0.304]
[1738172649698,3.20051,3124.5,3124.4,0.304]
[1738172649903,3.520561,3124.5,3124.4,0.304]
[1738172651011,3.520561,3124.5,3123.9,3.20112]
[1738172651223,3.520561,3124.5,3124.0,0.304]
[1738172651595,3.20063,3124.4,3124.0,0.304]
[1738172652718,3.20063,3124.4,3123.9,3.20112]
[1738172652719,3.20098,3124.1,3123.6,0.7655]
[1738172652917,3.20133,3123.7,3123.6,0.304]
[1738172653194,3.2012,3123.9,3123.6,0.304]
[1738172653530,6.4024,3123.9,3123.6,0.304]
[1738172654033,3.2012,3123.9,3123.6,0.304]
[1738172654235,0.62551618,3123.8,3123.6,0.304]
[1738172654592,3.841417,3123.9,3123.6,0.304]
[1738172654824,4.02413,3123.7,3123.6,0.304]
[1738172655006,7.02413,3123.7,3123.6,0.304]
[1738172655262,7.02413,3123.7,3123.1,3.2019]
[1738172655585,3.2015,3123.6,3123.2,0.304]
[1738172656586,3.0,3123.6,3122.7,3.3181]
[1738172656768,3.20173,3123.4,3122.8,0.304]
[1738172656975,3.20222,3122.9,3122.8,0.304]
[1738172657345,3.20198,3123.1,3122.8,0.304]
[1738172658149,3.20207,3123.0,3122.4,3.20258]
[1738172658479,3.20198,3123.1,3122.4,3.20258]
[1738172658480,3.20217,3122.9,3122.4,3.20258]
[1738172658785,3.20217,3122.9,3122.5,0.304]
[1738172659148,3.20217,3122.9,3122.6,0.07452227]
[1738172659550,3.95888,3123.1,3122.6,0.07452227]
[1738172660002,3.918047,3123.1,3122.6,3.27697227]
[1738172660171,0.63067418,3123.2,3122.7,3.20225]
[1738172660364,3.20179,3123.3,3122.6,3.27697227]
[1738172660702,3.20195,3123.1,3122.6,3.27697227]
[1738172661848,6.40363,3123.3,3122.7,3.20234]
[1738172662054,3.20179,3123.3,3122.7,3.20234]
[1738172662759,3.20199,3123.1,3122.6,0.07452227]
[1738172662914,3.20215,3122.9,3122.6,0.07452227]
[1738172663623,3.20215,3122.9,3122.7,0.304]
[1738172664019,3.20215,3122.9,3122.6,0.07452227]
[1738172664221,6.4047,3122.7,3122.0,0.755]
[1738172664519,3.20289,3122.2,3121.7,0.755]
[1738172664688,3.20311,3122.0,3121.8,0.304]
[1738172664886,3.20303,3122.1,3121.8,0.304]
[1738172665090,3.20317,3121.9,3121.8,0.304]
[1738172665271,0.64062,3121.9,3121.8,0.304]
[1738172665466,3.20311,3122.0,3121.4,0.755]
[1738172665667,3.20349,3121.6,3121.5,0.304]
[1738172668029,3.20349,3121.6,3121.4,0.304]
[1738172668030,3.20366,3121.5,3121.4,0.304]
[1738172668428,3.20366,3121.5,3121.3,2.535]
[1738172668598,3.20366,3121.5,3121.4,0.304]